fUSD/lending_fUSD_20241121
["ID","MTS","AMOUNT","RATE_DAILY","PERIOD"]
[342918443,1732204265372,-650.76,0.00041369,11]
[342918444,1732204265382,-578.77,0.00041369,11]
[342918445,1732204265392,-500.0,0.00041369,11]
[342918446,1732204265401,-1089.51,0.00041369,11]
[342918447,1732204265410,-500.0,0.00041369,11]
[342918448,1732204265418,-514.78,0.00041369,11]
[342918449,1732204265428,-500.0,0.00041369,11]
[342918450,1732204265438,-596.04,0.00041369,11]
[342918451,1732204265447,-500.0,0.00041369,11]
[342918452,1732204265457,-1063.94,0.00041369,11]
[342918453,1732204265467,-640.18,0.00041369,11]
[342918454,1732204265476,-500.0,0.00041369,11]
[342918455,1732204265485,-501.52,0.00041369,11]
[342918456,1732204265494,-3521.01,0.00041369,11]
[342918457,1732204265505,-1592.31,0.00041369,11]
[342918458,1732204265515,-500.0,0.00041369,11]
[342918459,1732204265524,-500.0,0.00041369,11]
[342918460,1732204265533,-585.43,0.00041369,11]
[342918461,1732204265542,-500.0,0.00041369,11]
[342918462,1732204265551,-500.0,0.00041369,11]
[342918463,1732204265560,-500.0,0.00041369,11]
[342918464,1732204265569,-500.0,0.00041369,11]
[342918465,1732204265578,-500.0,0.00041369,11]
[342918466,1732204265586,-788.71,0.00041369,11]
[342918467,1732204265596,-500.0,0.00041369,11]
[342918468,1732204265605,-500.0,0.00041369,11]
[342918469,1732204265614,-500.0,0.00041369,11]
[342918470,1732204265624,-500.0,0.00041369,11]
[342918471,1732204265633,-500.0,0.00041369,11]
[342918472,1732204265643,-500.0,0.00041369,11]
[342918473,1732204265652,-500.0,0.00041369,11]
[342918474,1732204265662,-500.0,0.00041369,11]
[342918475,1732204265670,-500.0,0.00041369,11]
[342918476,1732204265683,-500.0,0.00041369,11]
[342918477,1732204265696,-500.0,0.00041369,11]
[342918478,1732204265705,-500.0,0.00041369,11]
[342918479,1732204265714,-168.15137499,0.00041369,11]
[342918480,1732204265726,-500.0,0.00041369,11]
[342918481,1732204265734,-502.31,0.00041369,11]
[342918482,1732204265743,-1392.3,0.00041369,11]
[342918483,1732204265752,-500.0,0.00041369,11]
[342918484,1732204265762,-500.0,0.00041369,11]
[342918485,1732204265771,-570.76,0.00041369,11]
[342918486,1732204265779,-500.0,0.00041369,11]
[342918487,1732204265788,-1312.58,0.00041369,11]
[342918488,1732204265798,-869.92,0.00041369,11]
[342918489,1732204265808,-9982.76,0.00041369,11]
[342918490,1732204265817,-605.74,0.00041369,11]
[342918491,1732204265826,-2162.36,0.00041369,11]
[342918492,1732204265835,-514.62,0.00041369,11]
[342918493,1732204265844,-903.28,0.00041369,11]
[342918494,1732204265854,-706.27,0.00041369,11]
[342918495,1732204265864,-635.73,0.00041369,11]
[342918496,1732204265873,-500.0,0.00041369,11]
[342918497,1732204265882,-1528.23,0.00041369,11]
[342918498,1732204265891,-500.0,0.00041369,11]
[342918499,1732204265901,-500.0,0.00041369,11]
[342918500,1732204265911,-500.0,0.00041369,11]
[342918501,1732204265921,-190.54060636,0.00041369,11]
[342918502,1732204265942,-500.0,0.00041369,11]
[342918503,1732204265951,-445.1901068,0.00041369,11]
[342918504,1732204265960,-1090.43,0.00041369,11]
[342918505,1732204265969,-500.0,0.00041369,11]
[342918506,1732204265979,-500.0,0.00041369,11]
[342918507,1732204265989,-500.0,0.00041369,11]
[342918508,1732204265998,-500.0,0.00041369,11]
[342918509,1732204266007,-2907.09,0.00041369,11]
[342918510,1732204266017,-300.0,0.00041369,11]
[342918511,1732204266026,-617.69,0.00041369,11]
[342918512,1732204266037,-847.62,0.00041369,11]
[342918513,1732204266046,-500.0,0.00041369,11]
[342918514,1732204266056,-500.0,0.00041369,11]
[342918515,1732204266065,-601.0326614,0.00041369,11]
[342918516,1732204266075,-500.0,0.00041369,7]
[342918517,1732204266085,-315.41638422,0.00041369,11]
[342918518,1732204266094,-1049.63,0.00041369,11]
[342918519,1732204266104,-782.31,0.00041369,11]
[342918520,1732204266116,-500.0,0.00041369,11]
[342918521,1732204266128,-1201.62,0.00041369,11]
[342918522,1732204266138,-500.0,0.00041369,11]
[342918523,1732204266148,-500.0,0.00041369,11]
[342918524,1732204266158,-753.49,0.00041369,11]
[342918525,1732204266168,-500.0,0.00041369,11]
[342918526,1732204266179,-500.0,0.00041369,11]
[342918527,1732204266197,-856.81,0.00041369,11]
[342918528,1732204266207,-1928.55,0.00041369,11]
[342918529,1732204266218,-500.0,0.00041369,11]
[342918530,1732204266228,-852.4,0.00041369,11]
[342918531,1732204266238,-2673.56,0.00041369,11]
[342918532,1732204266248,-578.58,0.00041369,11]
[342918533,1732204266258,-500.0,0.00041369,11]
[342918534,1732204266268,-1196.41,0.00041369,11]
[342918535,1732204266278,-500.0,0.00041369,11]
[342918536,1732204266289,-658.66,0.00041369,11]
[342918537,1732204266299,-500.0,0.00041369,11]
[342918538,1732204266310,-1413.85,0.00041369,11]
[342918539,1732204266320,-3542.25,0.00041369,11]
[342918540,1732204266331,-500.0,0.00041369,11]
[342918541,1732204266342,-500.0,0.00041369,11]
[342918542,1732204266352,-698.62,0.00041369,11]
[342918543,1732204266363,-500.0,0.00041369,11]
[342918544,1732204266373,-500.0,0.00041369,11]
[342918545,1732204266382,-1342.07,0.00041369,11]
[342918546,1732204266392,-2500.26,0.00041369,11]
[342918547,1732204266402,-500.0,0.00041369,11]
[342918548,1732204266411,-1062.88,0.00041369,11]
[342918549,1732204266421,-500.0,0.00041369,11]
[342918550,1732204266437,-726.84,0.00041369,11]
[342918551,1732204266447,-500.0,0.00041369,11]
[342918552,1732204266457,-686.36,0.00041369,11]
[342918553,1732204266468,-996.28,0.00041369,11]
[342918554,1732204266478,-530.63,0.00041369,11]
[342918555,1732204266488,-500.0,0.00041369,11]
[342918556,1732204266498,-623.27,0.00041369,11]
[342918557,1732204266511,-500.0,0.00041369,11]
[342918558,1732204266522,-3668.1,0.00041369,11]
[342918559,1732204266533,-903.26,0.00041369,11]
[342918560,1732204266544,-500.0,0.00041369,11]
[342918561,1732204266554,-500.0,0.00041369,11]
[342918562,1732204266564,-1214.4,0.00041369,11]
[342918563,1732204266574,-500.0,0.00041369,11]
[342918564,1732204266584,-500.0,0.00041369,11]
[342918565,1732204266594,-1131.97,0.00041369,11]
[342918566,1732204266604,-1008.95,0.00041369,11]
[342918567,1732204266614,-1747.29,0.00041369,11]
[342918568,1732204266624,-500.0,0.00041369,11]
[342918569,1732204266635,-665.4,0.00041369,11]
[342918570,1732204266645,-500.0,0.00041369,11]
[342918571,1732204266655,-500.0,0.00041369,11]
[342918572,1732204266665,-530.21,0.00041369,11]
[342918573,1732204266675,-1798.83,0.00041369,11]
[342918574,1732204266689,-2143.77,0.00041369,11]
[342918575,1732204266700,-1113.58,0.00041369,11]
[342918576,1732204266710,-450.50743208,0.00041369,11]
[342918577,1732204266720,-7402.61,0.00041369,2]
[342918578,1732204266731,-11365.11,0.00041369,11]
[342918579,1732204266742,-631.63,0.00041369,11]
[342918580,1732204266752,-2155.58,0.00041369,11]
[342918581,1732204266761,-158.33,0.00041409,2]
[342918582,1732204266772,-150.0,0.00041528,2]
[342918583,1732204266783,-757.53,0.00041542,11]
[342918584,1732204266794,-834.77,0.00041542,11]
[342918585,1732204266804,-3232.87,0.00041542,11]
[342918586,1732204266814,-1538.07,0.00041542,11]
[342918587,1732204266825,-705.86,0.00041542,11]
[342918588,1732204266835,-500.0,0.00041542,11]
[342918589,1732204266846,-1284.92,0.00041542,11]
[342918590,1732204266857,-500.0,0.00041542,11]
[342918591,1732204266867,-950.09,0.00041542,11]
[342918592,1732204266878,-1031.75,0.00041542,11]
[342918593,1732204266889,-500.0,0.00041642,18]
[342918594,1732204266899,-500.0,0.00041642,18]
[342918595,1732204266909,-500.0,0.00041642,18]
[342918596,1732204266920,-500.0,0.00041642,18]
[342918597,1732204266933,-500.0,0.00041642,18]
[342918598,1732204266943,-675.16,0.00041642,18]
[342918599,1732204266953,-500.0,0.00041642,18]
[342918600,1732204266963,-336.65706751,0.00041642,18]
[342918601,1732204266973,-500.0,0.00041642,18]
[342918602,1732204266983,-500.0,0.00041642,18]
[342918603,1732204266993,-500.0,0.00041642,18]
[342918604,1732204267003,-500.0,0.00041642,18]
[342918605,1732204267013,-478.23858106,0.00041642,18]
[342918606,1732204267022,-500.0,0.00041642,18]
[342918607,1732204267032,-500.0,0.00041642,18]
[342918608,1732204267043,-500.0,0.00041642,11]
[342918609,1732204267053,-500.0,0.00041642,11]
[342918610,1732204267063,-500.0,0.00041642,11]
[342918611,1732204267073,-550.58,0.00041642,11]
[342918612,1732204267083,-500.0,0.00041642,11]
[342918613,1732204267093,-1010.99,0.00041642,11]
[342918614,1732204267103,-766.0,0.00041642,11]
[342918615,1732204267115,-500.0,0.00041642,11]
[342918616,1732204267126,-500.0,0.00041642,11]
[342918617,1732204267137,-819.63,0.00041642,11]
[342918618,1732204267146,-500.0,0.00041642,11]
[342918619,1732204267158,-491.76550678,0.00041642,11]
[342918620,1732204267168,-571.32,0.00041642,11]
[342918621,1732204267179,-500.0,0.00041642,11]
[342918622,1732204267191,-1712.72,0.00041642,11]
[342918623,1732204267201,-500.0,0.00041642,11]
[342918624,1732204267212,-500.0,0.00041642,11]
[342918625,1732204267222,-764.59,0.00041642,11]
[342918626,1732204267232,-955.73,0.00041642,11]
[342918627,1732204267242,-500.0,0.00041643,18]
[342918628,1732204267252,-500.0,0.00041643,18]
[342918629,1732204267261,-500.0,0.00041643,18]
[342918630,1732204267271,-500.0,0.00041643,18]
[342918631,1732204267281,-500.0,0.00041643,18]
[342918632,1732204267291,-500.0,0.00041643,18]
[342918633,1732204267301,-500.0,0.00041643,18]
[342918634,1732204267310,-500.0,0.00041643,18]
[342918635,1732204267320,-545.8072008,0.00041643,18]
[342918636,1732204267329,-500.0,0.00041643,18]
[342918637,1732204267339,-500.0,0.00041643,18]
[342918638,1732204267348,-500.0,0.00041643,18]
[342918639,1732204267358,-500.0,0.00041643,18]
[342918640,1732204267368,-500.0,0.00041643,18]
[342918641,1732204267378,-500.0,0.00041643,18]
[342918642,1732204267387,-500.0,0.00041643,18]
[342918643,1732204267397,-697.02,0.00041643,18]
[342918644,1732204267407,-550.78,0.00041643,18]
[342918645,1732204267416,-546.56,0.00041643,18]
[342918646,1732204267426,-500.0,0.00041643,18]
[342918647,1732204267440,-500.0,0.00041643,18]
[342918648,1732204267450,-500.0,0.00041643,18]
[342918649,1732204267459,-500.0,0.00041643,18]
[342918650,1732204267469,-1000.0,0.00041643,18]
[342918651,1732204267480,-829.01,0.00041643,18]
[342918652,1732204267490,-731.85,0.00041643,18]
[342918653,1732204267500,-500.0,0.00041643,18]
[342918654,1732204267510,-500.0,0.00041643,18]
[342918655,1732204267520,-500.0,0.00041643,18]
[342918656,1732204267531,-500.0,0.00041643,18]
[342918657,1732204267541,-500.0,0.00041643,18]
[342918658,1732204267551,-500.0,0.00041643,18]
[342918659,1732204267560,-500.0,0.00041643,18]
[342918660,1732204267571,-500.0,0.00041643,18]
[342918661,1732204267581,-500.0,0.00041643,18]
[342918662,1732204267591,-500.0,0.00041643,18]
[342918663,1732204267603,-500.0,0.00041643,18]
[342918664,1732204267613,-1023.91,0.00041643,18]
[342918665,1732204267623,-519.98,0.00041643,18]
[342918666,1732204267634,-500.0,0.00041643,18]
[342918667,1732204267644,-500.0,0.00041643,18]
[342918668,1732204267654,-500.0,0.00041643,11]
[342918669,1732204267664,-567.36,0.00041643,11]
[342918670,1732204267675,-500.0,0.00041643,11]
[342918671,1732204267692,-500.0,0.00041643,11]
[342918672,1732204267702,-518.08,0.00041643,11]
[342918673,1732204267712,-500.0,0.00041643,11]
[342918674,1732204267722,-500.0,0.00041643,11]
[342918675,1732204267732,-500.0,0.00041643,11]
[342918676,1732204267742,-500.0,0.00041643,11]
[342918677,1732204267753,-500.0,0.00041643,11]
[342918678,1732204267763,-517.06,0.00041643,11]
[342918679,1732204267774,-500.0,0.00041643,11]
[342918680,1732204267784,-540.07,0.00041643,11]
[342918681,1732204267795,-500.0,0.00041643,11]
[342918682,1732204267806,-635.4,0.00041643,11]
[342918683,1732204267816,-500.0,0.00041643,11]
[342918684,1732204267826,-500.0,0.00041643,11]
[342918685,1732204267836,-500.0,0.00041643,11]
[342918686,1732204267846,-500.0,0.00041643,11]
[342918687,1732204267856,-500.0,0.00041643,11]
[342918688,1732204267866,-500.0,0.00041643,11]
[342918689,1732204267877,-629.21,0.00041643,11]
[342918690,1732204267887,-558.31,0.00041643,11]
[342918691,1732204267897,-500.0,0.00041643,11]
[342918692,1732204267907,-726.04,0.00041643,11]
[342918693,1732204267918,-500.0,0.00041643,11]
[342918694,1732204267930,-500.0,0.00041643,11]
[342918695,1732204267941,-674.21,0.00041643,11]
[342918696,1732204267951,-500.0,0.00041643,11]
[342918697,1732204267960,-810.27,0.00041643,11]
[342918698,1732204267970,-500.0,0.00041643,11]
[342918699,1732204267980,-524.02,0.00041643,11]
[342918700,1732204267989,-857.98,0.00041643,11]
[342918701,1732204267999,-500.0,0.00041643,11]
[342918702,1732204268009,-500.0,0.00041643,11]
[342918703,1732204268019,-500.0,0.00041643,11]
[342918704,1732204268030,-594.22,0.00041643,11]
[342918705,1732204268040,-786.75,0.00041643,11]
[342918706,1732204268050,-629.47,0.00041643,11]
[342918707,1732204268060,-952.08,0.00041643,11]
[342918708,1732204268070,-796.66,0.00041643,11]
[342918709,1732204268079,-610.74,0.00041643,11]
[342918710,1732204268088,-537.50236484,0.00041643,11]
[342918711,1732204268098,-603.46052477,0.00041643,11]
[342918712,1732204268111,-913.27,0.00041643,11]
[342918713,1732204268121,-500.0,0.00041643,11]
[342918714,1732204268131,-500.0,0.00041643,11]
[342918715,1732204268141,-500.0,0.00041643,11]
[342918716,1732204268152,-500.0,0.00041643,11]
[342918717,1732204268162,-500.0,0.00041643,11]
[342918718,1732204268172,-549.48,0.00041643,11]
[342918719,1732204268187,-500.0,0.00041643,11]
[342918720,1732204268197,-500.0,0.00041643,11]
[342918721,1732204268207,-696.29,0.00041643,11]
[342918722,1732204268217,-1257.78,0.00041643,11]
[342918723,1732204268468,-500.0,0.00041643,11]
[342918724,1732204268478,-683.63,0.00041643,11]
[342918725,1732204268488,-500.0,0.00041643,11]
[342918726,1732204268497,-725.57,0.00041643,11]
[342918727,1732204268506,-536.40984243,0.00041643,11]
[342918728,1732204268517,-500.0,0.00041643,11]
[342918729,1732204268526,-500.0,0.00041643,11]
[342918730,1732204268536,-514.9,0.00041643,11]
[342918731,1732204268545,-500.0,0.00041643,11]
[342918732,1732204268555,-500.0,0.00041643,11]
[342918733,1732204268564,-500.0,0.00041643,11]
[342918734,1732204268573,-1188.15,0.00041643,11]
[342918735,1732204268583,-622.83,0.00041643,11]
[342918736,1732204268592,-777.99,0.00041643,11]
[342918737,1732204268602,-500.0,0.00041643,11]
[342918738,1732204268612,-532.48,0.00041643,11]
[342918739,1732204268622,-647.33668838,0.00041643,11]
[342918740,1732204268632,-1299.26,0.00041643,11]
[342918741,1732204268641,-500.0,0.00041643,11]
[342918742,1732204268651,-650.76,0.00041643,11]
[342918743,1732204268660,-578.77,0.00041643,11]
[342918744,1732204268670,-500.0,0.00041643,11]
[342918745,1732204268682,-1089.51,0.00041643,11]
[342918746,1732204268691,-500.0,0.00041643,11]
[342918747,1732204268700,-514.78,0.00041643,11]
[342918748,1732204268710,-500.0,0.00041643,11]
[342918749,1732204268719,-596.04,0.00041643,11]
[342918750,1732204268729,-500.0,0.00041643,11]
[342918751,1732204268738,-1063.94,0.00041643,11]
[342918752,1732204268747,-640.18,0.00041643,11]
[342918753,1732204268758,-500.0,0.00041643,11]
[342918754,1732204268767,-501.52,0.00041643,11]
[342918755,1732204268776,-3521.01,0.00041643,11]
[342918756,1732204268786,-1592.31,0.00041643,11]
[342918757,1732204268797,-500.0,0.00041643,11]
[342918758,1732204268809,-500.0,0.00041643,11]
[342918759,1732204268818,-585.43,0.00041643,11]
[342918760,1732204268829,-500.0,0.00041643,11]
[342918761,1732204268839,-500.0,0.00041643,11]
[342918762,1732204268849,-500.0,0.00041643,11]
[342918763,1732204268859,-500.0,0.00041643,11]
[342918764,1732204268867,-500.0,0.00041643,11]
[342918765,1732204268877,-788.71,0.00041643,11]
[342918766,1732204268888,-500.0,0.00041643,11]
[342918767,1732204268899,-500.0,0.00041643,11]
[342918768,1732204268909,-500.0,0.00041643,11]
[342918769,1732204268919,-313.26654383,0.00041643,11]
[342918770,1732204268931,-500.0,0.00041643,11]
[342918771,1732204268940,-500.0,0.00041643,11]
[342918772,1732204268950,-500.0,0.00041643,11]
[342918773,1732204268959,-500.0,0.00041643,11]
[342918774,1732204268968,-500.0,0.00041643,11]
[342918775,1732204268978,-500.0,0.00041643,11]
[342918776,1732204268987,-500.0,0.00041643,11]
[342918777,1732204268997,-500.0,0.00041643,11]
[342918778,1732204269007,-500.0,0.00041643,11]
[342918779,1732204269016,-502.31,0.00041643,11]
[342918780,1732204269025,-1392.3,0.00041643,11]
[342918781,1732204269035,-394.57251217,0.00041643,11]
[342918782,1732204269256,-105.42748783,0.00041643,11]
[342918783,1732204269266,-500.0,0.00041643,11]
[342918784,1732204269275,-570.76,0.00041643,11]
[342918785,1732204269285,-135.13840342,0.00041643,11]
[342918786,1732204269297,-364.86159658,0.00041643,11]
[342918787,1732204269307,-1312.58,0.00041643,11]
[342918788,1732204269317,-869.92,0.00041643,11]
[342918789,1732204269326,-9982.76,0.00041643,11]
[342918790,1732204269336,-605.74,0.00041643,11]
[342918791,1732204269347,-2162.36,0.00041643,11]
[342918792,1732204269357,-514.62,0.00041643,11]
[342918793,1732204269367,-903.28,0.00041643,11]
[342918794,1732204269376,-706.27,0.00041643,11]
[342918795,1732204269385,-635.73,0.00041643,11]
[342918796,1732204269394,-500.0,0.00041643,11]
[342918797,1732204269403,-1528.23,0.00041643,11]
[342918798,1732204269413,-500.0,0.00041643,11]
[342918799,1732204269422,-500.0,0.00041643,11]
[342918800,1732204269434,-500.0,0.00041643,11]
[342918801,1732204269444,-500.0,0.00041643,11]
[342918802,1732204269453,-1090.43,0.00041643,11]
[342918803,1732204269463,-500.0,0.00041643,11]
[342918804,1732204269472,-500.0,0.00041643,11]
[342918805,1732204269481,-500.0,0.00041643,11]
[342918806,1732204269491,-500.0,0.00041643,11]
[342918807,1732204269500,-300.0,0.00041643,11]
[342918808,1732204269509,-2907.09,0.00041643,11]
[342918809,1732204269519,-617.69,0.00041643,11]
[342918810,1732204269529,-847.62,0.00041643,11]
[342918811,1732204269538,-500.0,0.00041643,11]
[342918812,1732204269548,-500.0,0.00041643,11]
[342918813,1732204269557,-500.0,0.00041643,7]
[342918814,1732204269567,-1049.63,0.00041643,11]
[342918815,1732204269576,-191.18840342,0.00041643,11]
[342918816,1732204269713,-263.51572295,0.00041643,11]
[342918817,1732204269749,-500.0,0.0003863,11]
[342918818,1732204269761,-327.60587363,0.00041643,11]
[342918819,1732204269771,-347.41291374,0.00041643,11]
[342918820,1732204269781,-446.98121263,0.00041643,11]
[342918821,1732204269793,-754.63878737,0.00041643,11]
[342918822,1732204269803,-500.0,0.00041643,11]
[342918823,1732204269812,-500.0,0.00041643,11]
[342918824,1732204269821,-733.19513182,0.00041643,11]
[342918825,1732204269962,-500.0,0.00038628,11]
[342918826,1732204269972,-542.46,0.00038628,11]
[342918827,1732204269982,-500.0,0.00038904,11]
[342918828,1732204269992,-500.0,0.00039178,11]
[342918829,1732204270001,-153.54003,0.00039452,11]
[342918830,1732204270013,-346.45997,0.00039452,11]
[342918831,1732204270022,-337.29036561,0.00039726,11]
[342918832,1732204270061,-500.0,0.00038629,15]
[342918833,1732204270070,-500.0,0.00038629,15]
[342918834,1732204270079,-427.29879586,0.00038629,15]
[342918835,1732204270088,-500.0,0.00038629,15]
[342918836,1732204270098,-500.0,0.00038629,11]
[342918837,1732204270109,-157.45095005,0.00038629,15]
[342918838,1732204270119,-162.70963439,0.00039726,11]
[342918839,1732204270129,-133.03196796,0.00039999,11]
[342918840,1732204270141,-864.4399879,0.00039999,11]
[342918841,1732204270153,-2.52804414,0.00039999,11]
[342918842,1732204270162,-500.0,0.0004,11]
[342918843,1732204270172,-1000.0,0.00040273,11]
[342918844,1732204270186,-20.29486818,0.00041643,11]
[342918845,1732204270195,-102.82708768,0.00041643,11]
[342918846,1732204270662,-500.0,0.00038356,11]
[342918847,1732204270672,-500.0,0.00038628,11]
[342918848,1732204270685,-500.0,0.00038628,11]
[342918849,1732204270695,-500.0,0.0003863,11]
[342918850,1732204270704,-559.87,0.00038902,11]
[342918851,1732204270714,-275.81,0.00038902,11]
[342918852,1732204270723,-500.0,0.00038903,11]
[342918853,1732204270733,-171.65,0.00038904,11]
[342918854,1732204270742,-500.0,0.00039999,11]
[342918855,1732204270752,-500.0,0.00040273,11]
[342918856,1732204270761,-500.0,0.00040273,11]
[342918857,1732204270770,-500.0,0.00040547,11]
[342918858,1732204270780,-441.53,0.00040547,11]
[342918859,1732204270789,-500.0,0.00040821,11]
[342918860,1732204270798,-500.0,0.00041095,11]
[342918861,1732204270807,-291.1448575,0.00041369,11]
[342918862,1732204270826,-208.8551425,0.00041369,11]
[342918863,1732204270835,-397.17291232,0.00041643,11]
[342918864,1732204270844,-500.0,0.00041643,11]
[342918865,1732204270854,-856.81,0.00041643,11]
[342918866,1732204270863,-1081.82012599,0.00041643,11]
[342918867,1732204270874,-846.72987401,0.00041643,11]
[342918868,1732204270883,-500.0,0.00041643,11]
[342918869,1732204270892,-852.4,0.00041643,11]
[342918870,1732204270903,-2673.56,0.00041643,11]
[342918871,1732204270912,-578.58,0.00041643,11]
[342918872,1732204270921,-500.0,0.00041643,11]
[342918873,1732204270935,-1196.41,0.00041643,11]
[342918874,1732204270946,-500.0,0.00041643,11]
[342918875,1732204270955,-658.66,0.00041643,11]
[342918876,1732204270965,-500.0,0.00041643,11]
[342918877,1732204270974,-1413.85,0.00041643,11]
[342918878,1732204270983,-894.72610519,0.00041643,11]
[342918879,1732204270994,-2647.52389481,0.00041643,11]
[342918880,1732204271004,-621.72716777,0.00041643,11]
[342918881,1732204271013,-500.0,0.00041643,11]
[342918882,1732204271022,-698.62,0.00041643,11]
[342918883,1732204271031,-500.0,0.00041643,11]
[342918884,1732204271040,-500.0,0.00041643,11]
[342918885,1732204271049,-1342.07,0.00041643,11]
[342918886,1732204271058,-2500.26,0.00041643,11]
[342918887,1732204271067,-228.72725921,0.00041643,11]
[342918888,1732204271077,-1062.88,0.00041643,11]
[342918889,1732204271086,-500.0,0.00041643,11]
[342918890,1732204271095,-726.84,0.00041643,11]
[342918891,1732204271104,-500.0,0.00041643,11]
[342918892,1732204271117,-686.36,0.00041643,11]
[342918893,1732204271126,-996.28,0.00041643,11]
[342918894,1732204271135,-530.63,0.00041643,11]
[342918895,1732204271144,-500.0,0.00041643,11]
[342918896,1732204271154,-623.27,0.00041643,11]
[342918897,1732204271164,-473.19644516,0.00041643,11]
[342918898,1732204271173,-3668.1,0.00041643,11]
[342918899,1732204271189,-903.26,0.00041643,11]
[342918900,1732204271199,-500.0,0.00041643,11]
[342918901,1732204271209,-500.0,0.00041643,11]
[342918902,1732204271218,-1214.4,0.00041643,11]
[342918903,1732204271227,-500.0,0.00041643,11]
[342918904,1732204271236,-500.0,0.00041643,11]
[342918905,1732204271245,-1131.97,0.00041643,11]
[342918906,1732204271254,-1008.95,0.00041643,11]
[342918907,1732204271263,-87.73523305,0.00041643,11]
[342918908,1732204271275,-1659.55476695,0.00041643,11]
[342918909,1732204271284,-284.95114659,0.00041643,11]
[342918910,1732204271294,-665.4,0.00041643,11]
[342918911,1732204271303,-500.0,0.00041643,11]
[342918912,1732204271313,-500.0,0.00041643,11]
[342918913,1732204271323,-530.21,0.00041643,11]
[342918914,1732204271332,-1798.83,0.00041643,11]
[342918915,1732204271341,-898.72908646,0.00041643,11]
[342918916,1732204271354,-1245.04091354,0.00041643,11]
[342918917,1732204271364,-1113.58,0.00041643,11]
[342918918,1732204271373,-511.79908646,0.00041643,2]
[342918919,1732204271387,-1523.56760156,0.00041643,2]
[342918920,1732204271399,-5367.24331198,0.00041643,2]
[342918921,1732204271408,-11365.11,0.00041643,11]
[342918922,1732204271418,-631.63,0.00041643,11]
[342918923,1732204271427,-2155.58,0.00041643,11]
[342918924,1732204271447,-500.0,0.00041643,11]
[342918925,1732204271457,-150.0,0.00041646,2]
[342918926,1732204271467,-500.0,0.00041673,10]
[342918927,1732204271476,-757.53,0.00041816,11]
[342918928,1732204271486,-834.77,0.00041816,11]
[342918929,1732204271495,-3232.87,0.00041816,11]
[342918930,1732204271505,-1538.07,0.00041816,11]
[342918931,1732204271515,-705.86,0.00041816,11]
[342918932,1732204271525,-500.0,0.00041816,11]
[342918933,1732204271534,-1284.92,0.00041816,11]
[342918934,1732204271543,-500.0,0.00041816,11]
[342918935,1732204271553,-950.09,0.00041816,11]
[342918936,1732204271563,-1031.75,0.00041816,11]
[342918937,1732204271572,-2300.0,0.000419,15]
[342918938,1732204271581,-500.0,0.00041916,18]
[342918939,1732204271591,-500.0,0.00041916,18]
[342918940,1732204271601,-500.0,0.00041916,18]
[342918941,1732204271610,-500.0,0.00041916,18]
[342918942,1732204271620,-675.16,0.00041916,18]